bitfinex-derivatives/quotes_ETHF0:USTF0_20240913
["timestamp","ask_amount","ask_price","bid_price","bid_amount"]
[1726250594962,1.08148771,2410.2,2409.9,3.24]
[1726250595467,1.08148771,2410.2,2409.9,3.65484]
[1726250596569,1.08148771,2410.2,2409.9,5.35184]
[1726250597077,1.08148771,2410.2,2409.9,4.937]
[1726250597477,1.08148771,2410.1,2409.9,4.937]
[1726250597670,6.07858771,2410.1,2409.7,1.32337]
[1726250597868,1.92718771,2410.0,2409.7,0.9085]
[1726250598268,1.92718771,2410.0,2409.7,1.32338]
[1726250598469,1.08148771,2409.9,2409.7,0.9085]
[1726250598770,1.92718771,2410.0,2409.7,0.9085]
[1726250599162,1.08148771,2409.9,2409.6,3.2078]
[1726250599768,1.08148771,2409.9,2409.6,3.62269]
[1726250600471,1.08148771,2409.9,2409.5,4.74079914]
[1726250600678,1.08148771,2409.8,2409.5,6.86271]
[1726250600875,1.08148771,2409.8,2409.5,3.65491]
[1726250601270,1.08148771,2409.8,2409.5,3.24]
[1726250601468,4.28928771,2409.8,2409.5,3.24]
[1726250601675,0.8648,2409.7,2409.5,3.24]
[1726250601878,1.94628771,2409.7,2409.5,3.24]
[1726250602186,0.8648,2409.7,2409.6,3.24]
[1726250602669,1.08148771,2409.8,2409.6,3.65489]
[1726250602872,1.08148771,2409.9,2409.6,3.65489]
[1726250603187,1.08148771,2409.9,2409.8,3.24]
[1726250603478,6.53937615,2410.0,2409.8,3.24]
[1726250603479,4.28928771,2410.0,2409.8,3.24]
[1726250603677,4.28928771,2410.0,2409.9,0.41485]
[1726250603978,4.28928771,2410.0,2409.8,4.74074914]
[1726250603979,3.2078,2410.0,2409.8,4.74074914]
[1726250604173,1.08148771,2410.1,2409.8,4.74074914]
[1726250604373,1.08148771,2410.1,2409.9,0.41484]
[1726250604676,1.08148771,2410.1,2409.8,4.32588914]
[1726250604871,1.08148771,2410.0,2409.8,3.24]
[1726250605266,1.08148771,2410.0,2409.8,4.74073914]
[1726250605673,1.08148771,2410.0,2409.9,0.41485]
[1726250606074,1.08148771,2410.0,2409.9,1.29295]
[1726250606478,1.08148771,2410.0,2409.9,0.8781]
[1726250606874,1.08148771,2410.0,2409.9,1.29295]
[1726250607978,1.08148771,2410.1,2410.0,0.41483]
[1726250608174,1.08148771,2410.1,2410.0,3.65483]
[1726250608381,1.08148771,2410.3,2410.0,10.81267414]
[1726250608582,1.08148771,2410.5,2410.2,6.4478]
[1726250608886,1.62107615,2410.6,2410.4,4.32623848]
[1726250608887,1.08148771,2410.6,2410.4,4.32623848]
[1726250609071,1.08148771,2410.6,2410.5,1.7]
[1726250609274,1.08148771,2410.6,2410.5,2.11474]
[1726250609486,1.08148771,2410.7,2410.5,2.11474]
[1726250609789,1.08148771,2410.6,2410.5,2.11474]
[1726250610288,1.08148771,2410.6,2410.5,0.8536]
[1726250611093,1.08148771,2410.7,2410.5,1.26834]
[1726250611384,1.08148771,2410.7,2410.6,3.65473]
[1726250611590,1.08148771,2410.8,2410.6,8.2386]
[1726250611781,1.08148771,2411.0,2410.8,0.41468]
[1726250612081,1.08148771,2411.1,2410.8,3.65468]
[1726250612693,1.08148771,2411.2,2410.8,3.65468]
[1726250612985,1.08148771,2411.2,2411.0,3.65465]
[1726250613487,2.50657615,2411.3,2411.0,3.24]
[1726250613488,1.08148771,2411.3,2411.0,3.24]
[1726250614090,1.08148771,2411.4,2411.2,3.65461]
[1726250614289,1.62107615,2411.6,2411.3,0.41461]
[1726250614290,1.08148771,2411.5,2411.3,0.41461]
[1726250614484,2.85178771,2411.7,2411.4,3.24]
[1726250615182,2.85178771,2411.7,2411.6,3.24]
[1726250615383,1.7703,2411.7,2411.6,3.24]
[1726250615579,5.9167,2411.7,2411.6,3.24]
[1726250615780,3.2078,2411.8,2411.6,3.24]
[1726250615976,0.8849,2412.3,2411.7,1.24633]
[1726250616286,4.28928771,2412.2,2411.9,3.24]
[1726250616486,3.2078,2412.2,2411.9,3.24]
[1726250617486,3.2078,2412.2,2411.9,3.6545]
[1726250617688,3.2078,2412.2,2411.9,3.65449]
[1726250618485,3.2078,2412.2,2412.0,0.41448]
[1726250618787,0.8849,2412.3,2412.1,3.65447]
[1726250619386,3.2078,2412.5,2412.1,3.24]
[1726250619590,1.08148771,2412.7,2412.3,3.65443]
[1726250619591,1.7448,2412.7,2412.3,3.65443]
[1726250619993,3.2078,2412.6,2412.2,0.8687]
[1726250620490,3.2078,2412.6,2412.2,1.28315]
[1726250621083,4.28928771,2412.6,2412.3,0.41443]
[1726250621286,4.28928771,2412.6,2412.0,0.847]
[1726250621287,5.64069771,2412.5,2412.0,0.41448]
[1726250621594,3.2078,2412.3,2412.0,0.41448]
[1726250621794,3.2078,2412.3,2411.9,3.24]
[1726250621985,0.834,2412.2,2412.0,0.41448]
[1726250622180,0.834,2412.2,2411.9,3.24]
[1726250622181,0.834,2412.2,2412.1,0.41447]
[1726250622387,0.834,2412.2,2412.0,0.41448]
[1726250622585,1.7257,2412.2,2412.0,0.41448]
[1726250622988,6.28576,2412.2,2411.8,0.41452]
[1726250623195,2.14016,2412.2,2411.7,3.24]
[1726250623384,3.2078,2412.0,2411.8,0.41451]
[1726250623585,3.2078,2412.0,2411.7,3.24]
[1726250623783,3.2078,2412.0,2411.8,0.41451]
[1726250623989,1.7257,2412.2,2411.7,3.24]
[1726250624190,3.2078,2412.1,2411.8,0.4145]
[1726250624487,3.2078,2412.1,2411.9,3.6545]
[1726250624686,1.7257,2412.2,2411.9,3.6545]
[1726250625098,1.7257,2412.2,2411.9,3.65449]
[1726250625290,1.7257,2412.2,2411.9,3.24]
[1726250625491,1.7257,2412.2,2412.0,0.41447]
[1726250625897,1.7257,2412.2,2412.1,3.24]
[1726250626294,1.7257,2412.2,2412.1,3.65447]
[1726250626496,1.7257,2412.2,2412.1,3.24]
[1726250627887,5.8713,2412.2,2412.1,3.24]
[1726250629592,1.7257,2412.2,2412.1,3.24]
[1726250629797,3.2078,2412.4,2412.1,3.24]
[1726250629997,3.2078,2412.4,2412.3,3.24]
[1726250630694,3.2078,2412.4,2412.3,3.65443]
[1726250631495,1.7161,2412.7,2412.3,3.65443]
[1726250631902,1.7161,2412.7,2412.4,0.41441]
[1726250632300,1.7161,2412.7,2412.5,3.24]
[1726250633296,1.7161,2412.7,2412.5,3.65439]
[1726250634503,0.853,2412.7,2412.6,0.41438]
[1726250634702,0.853,2412.7,2412.5,3.65439]
[1726250635008,0.853,2412.7,2412.6,0.41438]
[1726250635191,0.853,2412.7,2412.6,0.8993]
[1726250635705,3.2078,2412.8,2412.6,0.8993]
[1726250636006,3.2078,2412.8,2412.7,3.24]
[1726250636501,0.8319,2413.0,2412.7,3.65436]
[1726250636700,0.8319,2413.0,2412.9,3.24]
[1726250638493,0.8319,2413.0,2412.9,3.65433]
[1726250638902,0.8319,2413.0,2412.9,3.24]
[1726250640717,5.39021,2413.0,2412.9,3.24]
[1726250641009,5.39021,2413.0,2412.8,3.24]
[1726250641206,0.41433,2412.9,2412.5,3.65439]
[1726250641414,3.2078,2412.7,2412.6,0.41438]
[1726250641902,3.2078,2412.7,2412.5,3.24]
[1726250642105,0.8319,2413.0,2412.5,4.1392]
[1726250642106,1.24622,2413.0,2412.5,4.1392]
[1726250642295,1.24622,2413.0,2412.8,3.24]
[1726250642712,4.144,2412.9,2412.8,3.24]
[1726250643800,0.8319,2413.0,2412.8,3.24]
[1726250644004,1.24622,2413.0,2412.8,3.24]
[1726250646404,0.8498,2413.1,2413.0,0.41431]
[1726250646706,3.62206,2413.4,2413.1,0.41429]
[1726250646707,0.8815,2413.3,2413.1,0.41429]
[1726250646907,0.8815,2413.3,2413.0,3.6543]
[1726250646908,1.29576,2413.3,2413.0,3.6543]
[1726250647108,3.2078,2413.2,2413.0,3.65431]
[1726250648403,3.2078,2413.2,2413.0,3.24]
[1726250649001,3.2078,2413.2,2413.0,3.65431]
[1726250649214,3.2078,2413.2,2413.0,3.24]
[1726250650008,3.2078,2413.2,2413.0,3.65431]
[1726250651814,4.55831,2413.1,2412.8,0.41434]
[1726250652017,1.96025109,2413.0,2412.8,3.65434]
[1726250652208,1.96025109,2413.0,2412.8,3.24]
[1726250652408,1.07395109,2412.9,2412.8,3.65434]
[1726250653614,3.2078,2412.9,2412.7,3.24]
[1726250653818,2.51692664,2412.8,2412.7,3.24]
[1726250654020,2.51692664,2412.8,2412.7,1.37469508]
[1726250654021,3.67550894,2412.8,2412.7,1.37469508]
[1726250654319,5.25805675,2412.8,2412.7,1.37469508]
[1726250654817,7.40595894,2412.8,2412.7,1.78905508]
[1726250655506,5.25805675,2412.8,2412.7,1.78905508]
[1726250655712,7.41604795,2412.8,2412.7,1.78905508]
[1726250656412,5.25805675,2412.8,2412.7,1.78905508]
[1726250656612,7.41762718,2412.8,2412.7,1.78905508]
[1726250656920,5.25805675,2412.8,2412.7,1.78905508]
[1726250657118,7.41785153,2412.8,2412.7,1.78905508]
[1726250657319,0.20725675,2412.8,2412.7,1.78905508]
[1726250657616,2.68487774,2412.9,2412.8,0.41435]
[1726250657817,5.10018685,2412.9,2412.8,3.24]
[1726250658213,9.24498685,2412.9,2412.8,3.24]
[1726250658412,9.76790911,2412.9,2412.8,3.24]
[1726250658608,12.47094802,2412.9,2412.8,3.65435]
[1726250658820,12.47094802,2412.9,2412.8,3.24]
[1726250658821,12.47083717,2412.9,2412.8,3.24]
[1726250659025,7.3526,2412.9,2412.8,3.65435]
[1726250659323,0.8863,2413.0,2412.8,3.24]
[1726250659514,1.9675109,2413.0,2412.8,3.24]
[1726250659718,6.1115109,2413.0,2412.8,3.24]
[1726250660117,6.5258309,2413.0,2412.8,3.24]
[1726250660322,6.1115109,2413.0,2412.8,3.24]
[1726250660520,1.9675109,2413.0,2412.8,3.24]
[1726250660731,6.1115109,2413.0,2412.8,3.24]
[1726250661020,1.9675109,2413.0,2412.8,3.24]
[1726250661414,1.9675109,2413.0,2412.8,4.0817]
[1726250661611,1.0812109,2412.9,2412.8,3.24]
[1726250662520,1.62181635,2412.9,2412.8,3.24]
[1726250663418,1.62181635,2412.9,2412.8,3.65435]
[1726250663724,3.00062181,2413.1,2412.8,10.6248]
[1726250663725,1.08311491,2413.1,2412.8,10.6248]
[1726250663917,1.08311491,2413.1,2413.0,3.65431]
[1726250664231,4.82961635,2413.2,2413.1,0.4143]
[1726250664232,3.2078,2413.2,2413.1,0.4143]
[1726250664524,4.82961635,2413.2,2413.1,1.3018]
[1726250665023,4.82961635,2413.2,2413.1,0.8875]
[1726250665630,9.18083925,2413.2,2413.0,3.24]
[1726250665816,0.8256,2413.1,2413.0,3.24]
[1726250666017,6.59141635,2413.1,2412.9,3.24]
[1726250666217,6.59141635,2413.1,2412.6,1.7242]
[1726250666218,6.83874778,2413.0,2412.7,3.65436]
[1726250666416,1.08324077,2412.8,2412.6,1.7242]
[1726250666617,1.08324077,2412.8,2412.7,3.65436]
[1726250666816,1.08324077,2412.8,2412.7,3.24]
[1726250667019,4.29104077,2412.8,2412.7,3.24]
[1726250667222,13.55984995,2412.8,2412.4,0.4144]
[1726250667422,13.55984995,2412.8,2412.5,3.24]
[1726250667423,1.08317277,2412.6,2412.5,3.24]
[1726250667622,1.62479067,2412.6,2412.5,3.24]
[1726250670227,2.03917067,2412.6,2412.5,3.24]
[1726250670533,2.24644332,2412.6,2412.5,3.24]
[1726250670746,2.24644332,2412.6,2411.7,1.69723098]
[1726250670747,1.03601,2412.5,2411.7,1.69723098]
[1726250670939,3.2078,2411.9,2411.7,3.24]
[1726250671126,1.7271,2411.8,2411.7,3.24]
[1726250671326,2.81005251,2411.8,2411.7,3.24]
[1726250671827,3.35152877,2411.8,2411.7,3.24]
[1726250672429,2.80914829,2411.8,2411.7,3.24]
[1726250674426,1.7271,2411.8,2411.7,3.24]
[1726250674627,3.22324254,2411.8,2411.7,3.24]
[1726250674825,0.41454,2411.7,2411.5,3.24]
[1726250675047,3.2078,2411.6,2411.3,3.6546]
[1726250675224,4.28946332,2411.6,2411.3,3.6546]
[1726250675537,1.49624332,2411.5,2411.1,4.53513]
[1726250675741,3.2078,2411.3,2411.2,0.41462]
[1726250675934,3.2078,2411.3,2411.2,3.65462]
[1726250676641,1.49621332,2411.6,2411.2,3.65462]
[1726250677128,1.49621332,2411.6,2411.2,3.24]
[1726250677329,3.2078,2411.4,2411.2,3.65462]
[1726250677947,0.41455,2411.6,2411.2,3.65462]
[1726250678237,4.70401332,2411.7,2411.3,0.4146]
[1726250678438,3.62235,2411.7,2411.5,3.24]
[1726250678945,3.2078,2411.7,2411.5,3.65456]
[1726250679237,3.2078,2411.7,2411.5,3.24]
[1726250680040,4.56095,2411.6,2411.3,3.24]
[1726250680234,0.41459,2411.5,2411.1,4.53513]
[1726250680434,0.41457,2411.6,2411.2,0.41462]
[1726250680635,0.41457,2411.5,2411.2,0.41462]
[1726250681142,0.41457,2411.5,2411.1,4.53513]
[1726250681437,0.41457,2411.5,2411.2,0.41462]
[1726250683437,0.41457,2411.5,2411.1,4.1205]
[1726250683438,3.2078,2411.7,2411.5,0.41457]
[1726250683639,3.2078,2411.7,2411.6,0.41455]
[1726250683842,3.2078,2411.7,2411.6,3.65455]
[1726250684044,3.2078,2412.0,2411.9,0.4145]
[1726250684347,3.2078,2412.0,2411.9,3.6545]
[1726250684734,1.08166332,2412.4,2412.0,0.41447]
[1726250684938,5.70322877,2412.5,2412.2,3.24]
[1726250684939,5.16046332,2412.5,2412.2,3.24]
[1726250685143,3.2078,2412.5,2412.4,3.24]
[1726250685640,3.2078,2412.5,2412.3,3.24]
[1726250686244,3.2078,2412.5,2412.4,3.24]
[1726250686549,3.2078,2412.5,2412.4,3.5716]
[1726250689647,3.2078,2412.5,2412.4,0.3316]
[1726250691941,3.2078,2412.5,2412.4,3.98602]
[1726250692352,1.08166332,2412.8,2412.4,3.5716]
[1726250692552,3.2078,2412.9,2412.7,3.24]
[1726250692750,2.78906332,2413.0,2412.8,3.65435]
[1726250692751,0.8364,2413.0,2412.8,3.65435]
[1726250693056,3.2078,2413.2,2412.8,3.24]
[1726250693267,4.51459,2413.2,2412.8,3.24]
[1726250693750,4.1003,2413.2,2412.9,0.41432]
[1726250693943,3.2078,2413.2,2413.0,3.65431]
[1726250694357,3.2078,2413.2,2413.0,3.24]
[1726250695447,3.2078,2413.2,2413.0,3.65431]
[1726250695650,3.2078,2413.2,2413.1,0.8646]
[1726250700240,3.2078,2413.2,2413.1,1.2789]
[1726250700449,3.2078,2413.2,2413.1,0.8646]
[1726250701051,3.62208,2413.2,2413.1,0.8646]
[1726250701352,13.3518,2413.2,2412.6,3.24]
[1726250701555,3.2078,2412.9,2412.7,0.41435]
[1726250701749,0.41432,2413.0,2412.7,0.41435]
[1726250702445,3.2078,2413.2,2412.8,0.41434]
[1726250702652,0.41431,2413.1,2412.9,3.24]
[1726250703052,3.2078,2413.2,2412.9,3.24]
[1726250703350,2.48642,2412.5,2412.0,0.207]
[1726250703554,5.27948,2412.9,2411.5,2.5496]
[1726250703555,3.2078,2412.1,2411.5,2.5496]
[1726250703850,3.2078,2412.2,2411.7,3.24]
[1726250704367,3.2078,2412.2,2411.8,0.41452]
[1726250704652,3.2078,2412.2,2411.8,0.41451]
[1726250705555,3.2078,2412.2,2411.7,6.86233]
[1726250706252,3.2078,2412.2,2411.7,10.5942]
[1726250706454,3.2078,2412.2,2411.7,11.00873]
[1726250706861,3.2078,2412.2,2411.7,11.49241841]
[1726250707062,3.2078,2412.2,2411.7,7.34601841]
[1726250707751,3.2078,2412.2,2411.7,6.93148841]
[1726250707957,3.2078,2412.2,2411.7,7.34600841]
[1726250708162,3.2078,2412.2,2411.7,6.93148841]
[1726250708353,3.2078,2412.2,2411.7,7.34601841]
[1726250709254,3.2078,2412.2,2411.8,0.41452]
[1726250709455,3.2078,2412.2,2411.7,7.34600841]
[1726250709755,3.2078,2412.2,2412.1,3.24]
[1726250709956,3.2078,2412.2,2411.9,3.24]
[1726250710156,3.2078,2412.2,2412.0,0.8304]
[1726250710463,3.2078,2412.2,2412.0,1.6992]
[1726250710661,0.41443,2412.4,2412.0,1.6992]
[1726250712057,3.2078,2412.2,2412.0,1.6992]
[1726250712459,3.2078,2412.2,2412.0,2.5482]
[1726250714565,3.2078,2412.2,2412.1,4.1456]
[1726250714765,0.41439,2412.6,2412.1,7.3856]
[1726250715065,8.81978899,2412.8,2412.4,3.24]
[1726250715266,4.28742899,2412.8,2412.5,1.7659]
[1726250715570,3.2078,2412.8,2412.5,1.7659]
[1726250715779,4.70178899,2412.8,2412.5,1.7659]
[1726250716881,3.62216,2412.8,2412.5,1.7659]
[1726250717080,3.2078,2412.8,2412.5,1.7659]
[1726250717476,4.70177899,2412.8,2412.5,1.7659]
[1726250719080,4.28742899,2412.8,2412.5,1.7659]
[1726250719985,4.70177899,2412.8,2412.5,1.7659]
[1726250720180,4.28742899,2412.8,2412.5,1.7659]
[1726250722192,4.28742899,2412.8,2412.6,3.24]
[1726250722376,2.50064349,2413.0,2412.6,8.2763]
[1726250722377,1.07962899,2413.0,2412.6,8.2763]
[1726250722685,1.94862899,2413.1,2412.9,3.24]
[1726250724282,0.41436,2412.8,2412.6,0.8915]
[1726250724484,0.41436,2412.8,2412.5,1.7659]
[1726250724485,3.2078,2412.8,2412.5,1.7659]
[1726250724679,3.2078,2412.8,2412.5,5.42029]
[1726250724879,1.08139439,2412.9,2412.7,3.24]
[1726250725079,1.08139439,2413.0,2412.7,3.24]
[1726250726484,1.08139439,2412.9,2412.7,3.24]
[1726250726684,1.08139439,2413.0,2412.7,3.24]
[1726250727190,1.08139439,2413.0,2412.9,3.24]
[1726250727697,0.869,2413.1,2412.9,3.24]
[1726250727698,1.95039439,2413.1,2412.9,3.24]
[1726250728083,4.28919439,2413.2,2412.9,3.65432]
[1726250728381,4.28919439,2413.2,2413.0,0.8331]
[1726250728584,1.08139439,2413.2,2413.0,0.8331]
[1726250728781,1.08139439,2413.4,2413.3,0.41426]
[1726250728980,4.118,2413.6,2413.4,0.41424]
[1726250729180,4.118,2413.6,2413.2,3.2078]
[1726250729181,4.28919439,2413.8,2413.5,4.48733]
[1726250729380,3.2078,2413.8,2413.7,3.24]
[1726250731985,3.2078,2413.8,2413.6,3.24]
[1726250733293,3.2078,2413.8,2413.7,3.24]
[1726250734689,3.2078,2413.8,2413.6,3.24]
[1726250740195,3.2078,2413.8,2413.6,3.65421]
[1726250741098,3.2078,2413.8,2413.6,3.24]
[1726250742802,3.2078,2413.8,2413.7,3.24]
[1726250743005,3.2078,2413.8,2413.7,6.30799]
[1726250743201,3.2078,2413.8,2413.7,10.45119]
[1726250745002,3.2078,2413.8,2413.7,10.037]
[1726250745205,3.2078,2413.8,2413.7,5.0149]
[1726250745402,3.2078,2413.8,2413.7,3.24]
[1726250747007,3.62198,2413.8,2413.7,3.24]
[1726250747208,3.62198,2413.8,2413.5,6.86202]
[1726250747209,3.2078,2413.8,2413.5,6.86202]
[1726250747808,4.0854,2413.8,2413.5,6.86202]
[1726250748601,4.0854,2413.8,2413.6,0.41421]
[1726250748805,4.0854,2413.8,2413.7,0.41419]
[1726250749115,4.0854,2413.8,2413.5,6.86201]
[1726250749411,4.0854,2413.8,2413.6,0.41421]
[1726250749598,4.0854,2413.8,2413.5,6.4478]
[1726250749599,4.0854,2413.8,2413.5,6.86202]
[1726250750412,4.0854,2413.8,2413.6,0.41421]
[1726250750610,4.0854,2413.8,2413.7,3.24]
[1726250750808,3.2078,2413.8,2413.7,3.65419]
[1726250751513,3.2078,2413.8,2413.7,3.24]
[1726250751811,3.2078,2413.8,2413.7,3.84309]
[1726250752411,3.2078,2413.8,2413.7,3.4289]
[1726250752911,3.2078,2413.8,2413.7,4.319]
[1726250753108,3.2078,2413.8,2413.7,4.73319]
[1726250753304,3.2078,2413.8,2413.7,4.319]
[1726250753500,3.2078,2413.8,2413.7,4.73319]
[1726250754108,3.2078,2413.8,2413.7,4.319]
[1726250754418,3.2078,2413.8,2413.7,4.73319]
[1726250754719,3.2078,2413.8,2413.7,4.319]
[1726250757212,3.2078,2413.8,2413.7,3.4289]
[1726250758215,3.2078,2413.8,2413.7,3.84309]
[1726250758413,3.2078,2413.8,2413.7,4.74769]
[1726250758813,3.2078,2413.8,2413.7,4.3335]
[1726250767620,1.08139439,2413.9,2413.7,8.89089]
[1726250767816,1.08139439,2414.1,2413.8,7.351]
[1726250768018,1.08139439,2414.2,2413.9,4.1095]
[1726250768220,1.08139439,2414.2,2414.1,3.24]
[1726250769230,1.61944349,2414.6,2414.1,16.5902]
[1726250769525,1.61944349,2414.6,2414.5,3.24]
[1726250769718,1.61944349,2414.7,2414.5,3.24]
[1726250770221,7.3258,2414.8,2414.5,3.24]
[1726250770222,8.94524349,2414.8,2414.5,3.24]
[1726250770417,1.61944349,2414.9,2414.7,3.24]
[1726250770617,1.61944349,2414.9,2414.8,3.24]
[1726250770816,2.51594349,2415.0,2414.8,3.24]
[1726250771023,1.61944349,2415.0,2414.9,0.41399]
[1726250771224,4.82724349,2415.2,2414.9,0.8679]
[1726250771427,4.83159913,2415.2,2415.1,3.24]
[1726250771624,7.9695888,2415.2,2414.9,4.1079]
[1726250771823,7.9695888,2415.2,2414.9,3.24]
[1726250771824,1.83091116,2415.1,2414.9,3.24]
[1726250772024,3.36255468,2415.0,2414.9,3.24]
[1726250772221,1.7387,2415.0,2414.9,3.24]
[1726250773827,0.838,2415.0,2414.9,3.24]
[1726250774029,2.52635468,2415.1,2414.9,3.24]
[1726250774030,1.62385468,2415.1,2414.9,3.24]
[1726250774331,3.2078,2415.2,2414.9,3.24]
[1726250774332,4.83165468,2415.2,2414.9,3.24]
[1726250775322,4.83165468,2415.2,2414.9,3.65398]
[1726250775530,4.83165468,2415.2,2414.9,3.24]
[1726250775730,4.83165468,2415.2,2414.9,3.65398]
[1726250776227,3.2078,2415.2,2415.1,3.24]
[1726250777226,3.2078,2415.2,2415.1,3.65395]
[1726250777429,3.2078,2415.2,2415.1,3.24]
[1726250778220,8.2221,2415.2,2414.9,3.24]
[1726250778420,4.49525,2415.2,2414.9,3.24]
[1726250779934,4.49525,2415.2,2414.9,3.65399]
[1726250780430,4.49525,2415.2,2414.9,4.54339]
[1726250780629,4.49525,2415.2,2415.0,0.41397]
[1726250780630,4.0813,2415.2,2415.0,0.41397]
[1726250780830,4.0813,2415.2,2415.1,3.24]
[1726250781026,4.49524,2415.2,2415.1,3.24]
[1726250781229,4.49524,2415.2,2415.1,3.4291]
[1726250781230,4.0813,2415.2,2415.1,3.4291]
[1726250781433,3.2078,2415.2,2415.1,3.4291]
[1726250781629,3.2078,2415.2,2415.1,3.84305]
[1726250782232,3.62169,2415.5,2415.1,7.5699]
[1726250782424,3.2078,2415.5,2415.3,3.24]
[1726250783032,3.62169,2415.5,2415.3,3.24]
[1726250784231,2.15728,2415.6,2415.3,3.6539]
[1726250784430,1.7434,2415.6,2415.4,0.4139]
[1726250784625,1.7434,2415.6,2415.4,0.41389]
[1726250784939,0.8795,2415.6,2415.5,3.65388]
[1726250785233,3.62165,2415.8,2415.5,3.65387]
[1726250785433,4.50515,2415.8,2415.5,3.65387]
[1726250785631,4.50515,2415.8,2415.6,0.41386]
[1726250785632,4.50514,2415.8,2415.6,0.41386]
[1726250785831,4.50514,2415.8,2415.5,3.65387]
[1726250786036,4.50514,2415.8,2415.5,3.24]
[1726250786037,0.41386,2415.7,2415.5,3.24]
[1726250786234,0.41386,2415.7,2415.5,3.65388]
[1726250786630,4.50514,2415.8,2415.5,3.65388]
[1726250786849,4.0357,2416.1,2415.7,3.24]
[1726250787137,4.0357,2416.1,2415.5,1.9296]
[1726250787138,4.8721,2416.1,2415.9,3.65381]
[1726250787336,5.28589,2416.1,2415.9,3.65381]
[1726250787539,4.8721,2416.1,2416.0,0.4138]
[1726250788039,4.8721,2416.1,2415.9,3.24]
[1726250788237,4.8721,2416.1,2415.9,3.6538]
[1726250788536,4.0357,2416.1,2416.0,0.4138]
[1726250788734,4.44949,2416.1,2415.9,3.24]
[1726250788934,0.8364,2416.0,2415.9,3.24]
[1726250789237,0.8364,2416.0,2415.9,3.65382]
[1726250790141,3.2078,2416.1,2416.0,0.4138]
[1726250790332,0.8785,2416.2,2416.0,0.4138]
[1726250790528,0.8785,2416.2,2416.1,3.24]
[1726250791334,0.9089,2416.3,2416.1,3.24]
[1726250791635,3.2078,2416.4,2416.1,3.24]
[1726250791941,3.00072,2416.5,2416.3,3.24]
[1726250792538,2.17172,2416.5,2416.3,3.24]
[1726250792842,2.17172,2416.5,2416.3,3.65375]
[1726250792843,3.2078,2416.4,2416.3,3.65375]
[1726250793232,0.41369,2416.7,2416.4,0.41373]
[1726250793536,5.35348,2416.8,2416.6,3.24]
[1726250793752,4.9398,2416.8,2416.6,3.24]
[1726250793944,0.41368,2416.7,2416.6,3.24]
[1726250794137,0.41368,2416.7,2416.6,3.4291]
[1726250795432,5.35347,2416.8,2416.6,3.8428]
[1726250795631,4.9398,2416.8,2416.6,3.4291]
[1726250795829,5.35347,2416.8,2416.6,3.4291]
[1726250796033,5.35347,2416.8,2416.6,3.84278]
[1726250796439,4.9398,2416.8,2416.7,0.41368]
[1726250796744,0.41361,2417.1,2416.9,0.41363]
[1726250796940,0.41361,2417.1,2417.0,3.24]
[1726250797239,3.6214,2417.2,2417.0,3.65362]
[1726250797935,3.2078,2417.2,2417.1,0.41361]
[1726250798839,3.2078,2417.2,2417.1,1.32021]
[1726250799338,3.2078,2417.2,2417.1,2.20181]
[1726250799942,3.2078,2417.2,2417.1,1.32021]
[1726250804238,1.815,2417.5,2417.2,0.41359]
[1726250804439,1.815,2417.5,2417.4,3.24]
[1726250805235,1.815,2417.5,2417.4,3.65356]
[1726250805548,7.3258,2418.1,2417.4,7.3768]
[1726250805748,8.10245,2418.5,2417.7,3.24]
[1726250805749,3.2078,2417.8,2417.7,3.24]
[1726250806250,0.8941,2417.9,2417.7,3.65351]
[1726250806545,3.2078,2418.1,2417.7,3.24]
[1726250806747,4.1019,2418.3,2418.0,3.24]
[1726250806943,4.1019,2418.3,2418.1,0.41343]
[1726250807250,4.1019,2418.3,2418.0,3.24]
[1726250807251,3.2078,2418.3,2418.0,3.24]
[1726250807443,3.2078,2418.3,2418.2,3.65342]
[1726250807746,3.2078,2418.3,2418.2,4.68698]
[1726250808243,3.2078,2418.3,2418.2,3.65342]
[1726250810547,3.2078,2418.3,2418.2,3.24]
[1726250810753,3.2078,2418.3,2418.2,3.65342]
[1726250811649,13.343,2418.3,2418.2,0.41342]
[1726250812347,3.2078,2418.3,2418.2,3.65342]
[1726250813139,7.343,2418.3,2418.1,0.41343]
[1726250813349,2.5927,2418.2,2418.1,0.41343]
[1726250813548,6.7279,2418.2,2418.1,0.41343]
[1726250814147,13.14134,2418.2,2418.0,3.24]
[1726250814346,13.14134,2418.2,2417.9,0.41347]
[1726250814347,4.1352,2418.1,2417.9,0.41347]
[1726250814547,3.2078,2418.0,2417.9,0.41347]
[1726250814752,7.3438,2418.0,2417.9,0.41347]
[1726250815061,2.5927,2418.2,2417.8,3.24]
[1726250815248,2.5927,2418.2,2418.1,3.65344]
[1726250815546,0.41344,2418.1,2417.7,0.4135]
[1726250815746,3.2078,2417.8,2417.7,0.41351]
[1726250816253,3.2078,2417.8,2417.7,1.44729]
[1726250816254,2.34271,2417.8,2417.7,1.44729]
[1726250816551,3.2078,2418.1,2418.0,0.41346]
[1726250816756,0.8871,2418.2,2418.1,0.41344]
[1726250816953,5.0223,2418.2,2418.0,2.2058306]
[1726250817145,3.2078,2418.5,2418.1,3.24]
[1726250817343,3.2078,2418.5,2418.4,3.65339]
[1726250818253,4.118,2418.9,2418.6,0.41335]
[1726250818254,7.3258,2418.9,2418.6,0.41335]
[1726250818552,3.2078,2418.9,2418.7,3.24]
[1726250818748,4.1069,2418.9,2418.7,3.24]